bitfinex-derivatives/quotes_ETHF0:USTF0_20250701
["timestamp","ask_amount","ask_price","bid_price","bid_amount"]
[1751337351449,27.6378,2491.0,2490.9,3.06272]
[1751337351641,3.2078,2491.0,2490.9,3.06272]
[1751337351837,27.6408,2491.0,2490.9,3.06272]
[1751337353746,28.44348,2491.0,2490.9,3.06272]
[1751337353945,28.44348,2491.0,2490.9,2.26]
[1751337354644,28.44348,2491.0,2490.3,0.6756]
[1751337354645,0.80288,2490.4,2490.3,0.80288]
[1751337354843,0.80288,2490.4,2490.3,2.05288]
[1751337355546,27.6408,2490.5,2490.4,0.80288]
[1751337355744,27.6408,2490.5,2490.4,1.19288]
[1751337356749,28.44365,2490.5,2490.4,1.19288]
[1751337356944,28.44365,2490.5,2490.4,0.39]
[1751337361147,28.44365,2490.5,2490.4,1.19288]
[1751337361349,28.44365,2490.5,2490.4,0.39]
[1751337362246,2.00739,2490.2,2489.8,0.7036]
[1751337362449,3.2078,2489.9,2489.8,3.61664]
[1751337362850,4.01084,2489.9,2489.8,2.8136]
[1751337363049,4.01084,2489.9,2489.8,3.61667]
[1751337363251,3.2078,2489.9,2489.8,3.61667]
[1751337364052,27.6508,2489.9,2489.8,3.61667]
[1751337364456,24.443,2489.9,2489.8,3.61667]
[1751337365358,3.2078,2490.2,2489.9,2.00758]
[1751337365552,3.2078,2490.2,2490.1,0.80297]
[1751337365752,28.45174,2490.2,2490.1,7.11297]
[1751337366056,27.6488,2490.2,2490.1,7.11297]
[1751337366660,28.45174,2490.2,2490.1,7.11297]
[1751337367758,4.01074,2490.2,2490.1,7.11297]
[1751337367955,27.6478,2490.2,2490.1,7.11297]
[1751337368160,28.45074,2490.2,2490.1,7.11297]
[1751337368856,28.45074,2490.2,2490.1,6.31]
[1751337369060,28.45074,2490.2,2490.1,7.11297]
[1751337369951,28.45074,2490.2,2490.1,6.31]
[1751337370358,28.45074,2490.2,2490.1,5.53754488]
[1751337370559,0.80307,2489.8,2489.7,0.80308]
[1751337370761,28.44987,2489.8,2489.7,2.04308]
[1751337371360,28.44987,2489.8,2489.7,1.24]
[1751337372462,0.80317,2489.5,2489.4,1.4669]
[1751337372660,27.6578,2489.5,2489.4,2.4869]
[1751337373154,28.46097,2489.5,2489.4,2.4869]
[1751337373465,27.6578,2489.5,2489.4,2.4869]
[1751337373966,0.80304,2490.0,2489.9,0.80302]
[1751337374160,3.9062,2490.2,2489.9,1.97]
[1751337374361,3.9062,2490.2,2490.1,0.80297]
[1751337374557,4.70914,2490.2,2490.1,2.85297]
[1751337374759,28.3682,2490.2,2490.1,2.85297]
[1751337375064,29.17114,2490.2,2490.1,2.85297]
[1751337375269,0.80297,2490.1,2490.0,0.80299]
[1751337375564,29.17116,2490.2,2490.1,0.80297]
[1751337375966,3.2078,2490.2,2490.1,3.12297]
[1751337376160,27.6728,2490.2,2490.1,3.12297]
[1751337376666,28.47574,2490.2,2490.1,3.81327]
[1751337377264,3.2078,2490.2,2490.1,3.81327]
[1751337377466,3.2078,2490.5,2490.4,0.80288]
[1751337377668,27.6688,2490.5,2490.4,10.49214504]
[1751337378561,3.2078,2490.5,2490.4,10.49214504]
[1751337378765,3.2078,2491.0,2490.9,0.80272]
[1751337378965,3.2078,2491.0,2490.9,2.66272]
[1751337379266,27.6798,2491.0,2490.9,2.66272]
[1751337379465,28.48248,2491.0,2490.9,2.66272]
[1751337380080,28.48248,2491.0,2490.9,1.86]
[1751337380268,25.27268,2491.0,2490.9,1.86]
[1751337380466,24.47,2491.0,2490.6,4.35926504]
[1751337380668,0.80278,2490.8,2490.7,0.80278]
[1751337380878,0.80273,2490.9,2490.8,0.80273]
[1751337381278,26.6565,2491.0,2490.9,0.80272]
[1751337382981,25.2727,2491.0,2490.9,0.80272]
[1751337383182,24.47,2491.0,2490.9,2.75272]
[1751337383379,24.459,2491.0,2490.9,2.7527]
[1751337383577,25.26168,2491.0,2490.9,1.95]
[1751337383776,25.26168,2491.0,2490.9,2.75272]
[1751337384284,24.459,2491.0,2490.9,2.75272]
[1751337384477,24.459,2491.0,2490.9,3.41252]
[1751337385582,25.26168,2491.0,2490.9,3.63252]
[1751337385783,25.26168,2491.0,2490.9,2.8298]
[1751337386084,25.26168,2491.0,2490.9,1.46252]
[1751337386580,0.6648,2491.2,2490.9,9.27584504]
[1751337386774,4.01039,2491.4,2491.3,0.80259]
[1751337386975,28.45839,2491.4,2491.3,2.69259]
[1751337387284,28.45839,2491.4,2491.3,2.88259]
[1751337387783,0.80255,2491.5,2491.4,0.80252]
[1751337387982,0.80262,2491.3,2491.2,0.8026]
[1751337388585,0.80257,2491.4,2491.3,0.80255]
[1751337388778,1.3322,2491.6,2491.4,0.80253]
[1751337388982,2.13473,2491.6,2491.5,0.80252]
[1751337389184,25.25953,2491.6,2491.5,3.05252]
[1751337389585,0.80253,2491.6,2491.5,2.25]
[1751337389885,0.80259,2491.3,2491.2,0.8026]
[1751337390086,0.80259,2491.3,2491.2,3.1426]
[1751337392083,0.80258,2491.4,2491.3,0.80257]
[1751337392589,0.80261,2491.3,2491.2,0.8026]
[1751337392788,0.80261,2491.3,2491.2,2.6926]
[1751337394188,0.80262,2491.2,2491.1,4.70423]
[1751337394389,0.80262,2491.2,2491.1,4.76425]
[1751337395994,0.80261,2491.3,2491.2,0.8026]
[1751337396290,0.80261,2491.3,2491.2,2.9626]
[1751337397693,0.80258,2491.4,2491.3,0.80256]
[1751337397890,0.80258,2491.4,2491.3,2.82256]
[1751337398191,0.80256,2491.4,2491.3,2.82256]
[1751337398391,25.24056,2491.5,2491.4,0.80256]
[1751337398597,25.24056,2491.5,2491.4,2.69256]
[1751337400094,25.24056,2491.5,2491.4,1.89]
[1751337400292,0.80259,2491.3,2491.1,3.9016]
[1751337400492,0.80262,2491.2,2491.1,4.70423]
[1751337400694,0.80262,2491.2,2491.1,6.68423]
[1751337401394,1.3445,2491.4,2491.1,6.68423]
[1751337401699,0.80248,2491.7,2491.6,0.80249]
[1751337401888,0.6518,2491.9,2491.6,4.12622]
[1751337402094,24.436,2492.1,2491.8,5.21385]
[1751337402285,12.15432,2492.2,2491.9,0.6602]
[1751337402490,25.24032,2492.2,2492.1,0.80233]
[1751337402789,25.93688,2492.3,2492.2,0.8023]
[1751337402989,25.93588,2492.3,2492.2,2.6723]
[1751337403897,25.93588,2492.3,2492.2,1.87]
[1751337404293,25.1336,2492.3,2491.9,0.6602]
[1751337404491,0.80236,2492.0,2491.9,0.6602]
[1751337404788,0.80236,2492.0,2491.7,0.7118]
[1751337404789,0.80243,2491.8,2491.7,1.51422]
[1751337405098,0.80243,2491.8,2491.7,4.57422]
[1751337405499,0.80243,2491.9,2491.8,0.80241]
[1751337405797,0.80243,2491.9,2491.8,3.00241]
[1751337406594,0.80243,2491.9,2491.8,2.2]
[1751337408698,4.01023,2491.9,2491.8,2.2]
[1751337413700,0.80243,2491.9,2491.8,2.2]
[1751337413902,4.01023,2491.9,2491.8,2.2]
[1751337415006,28.43723,2491.9,2491.8,2.2]
[1751337417897,28.43723,2491.9,2491.8,3.00243]
[1751337418192,0.8024,2492.0,2491.9,0.80236]
[1751337418397,4.01008,2492.3,2492.2,0.8023]
[1751337418701,3.2078,2492.3,2492.2,3.0623]
[1751337419300,0.80226,2492.4,2492.3,0.80227]
[1751337419495,0.80226,2492.4,2492.3,2.0]
[1751337419496,25.23126,2492.4,2492.3,2.0]
[1751337420602,25.23126,2492.4,2492.3,2.80227]
[1751337421205,0.80227,2492.3,2492.2,3.2078]
[1751337421404,0.80227,2492.3,2492.2,5.3478]
[1751337421599,0.80227,2492.3,2492.2,6.15008]
[1751337422001,7.06694799,2492.7,2492.2,5.3478]
[1751337422207,0.80217,2492.6,2492.5,5.16145504]
[1751337422505,0.80227,2492.3,2492.2,3.2078]
[1751337429309,0.80236,2492.0,2491.9,3.2078]
[1751337429498,25.21736,2492.0,2491.9,3.2278]
[1751337430203,0.80235,2492.1,2492.0,0.80233]
[1751337430415,0.80235,2492.1,2492.0,4.08293]
[1751337432515,0.80232,2492.2,2492.1,0.8023]
[1751337432707,3.99984799,2492.3,2492.2,0.8023]
[1751337432908,3.99984799,2492.3,2492.2,6.6366]
[1751337433412,0.8023,2492.3,2492.2,6.6366]
[1751337433610,3.99984799,2492.3,2492.2,6.6366]
[1751337433810,0.8023,2492.3,2492.2,6.6366]
[1751337434509,3.99984799,2492.3,2492.2,6.6366]
[1751337435013,0.8023,2492.3,2492.2,6.6366]
[1751337435210,3.99978799,2492.4,2492.3,0.80227]
[1751337435514,25.22024,2492.4,2492.3,4.17177]
[1751337435709,25.22024,2492.4,2492.3,2.75227]
[1751337435904,25.22024,2492.4,2492.3,3.45147]
[1751337440211,25.20624,2492.4,2492.3,3.45147]
[1751337441818,25.20624,2492.4,2492.3,5.71841001]
[1751337442317,24.404,2492.4,2492.3,5.71841001]
[1751337442617,25.20623,2492.4,2492.3,5.71841001]
[1751337443513,0.8022,2492.6,2492.5,0.80217]
[1751337443718,25.1942,2492.6,2492.5,6.58911001]
[1751337443913,0.80223,2492.4,2492.3,0.6992]
[1751337444119,0.80223,2492.4,2492.3,0.7592]
[1751337444814,0.80223,2492.4,2492.3,3.82841001]
[1751337445015,0.80222,2492.5,2492.4,0.8022]
[1751337445220,0.80222,2492.5,2492.4,2.3722]
[1751337445916,0.80219,2492.6,2492.5,0.8022]
[1751337446122,0.80223,2492.5,2492.4,3.06915001]
[1751337446317,0.80223,2492.5,2492.4,4.79915001]
[1751337447318,25.20919,2492.6,2492.5,0.8022]
[1751337447515,3.19754799,2492.7,2492.6,0.80217]
[1751337447722,25.21014,2492.7,2492.6,6.41911001]
[1751337447918,25.21014,2492.7,2492.6,4.65911001]
[1751337448120,0.80223,2492.4,2492.3,0.6992]
[1751337448320,0.80227,2492.3,2492.2,4.67657]
[1751337448623,0.80227,2492.3,2492.2,6.59657]
[1751337449318,0.80226,2492.4,2492.3,0.80224]
[1751337449521,0.80226,2492.4,2492.3,3.92224]
[1751337449821,0.80227,2492.3,2492.2,6.14124001]
[1751337450019,0.80227,2492.3,2492.2,5.4543]
[1751337450718,0.6809,2492.4,2492.1,0.6862]
[1751337450719,0.8023,2492.2,2492.1,0.6862]
[1751337450924,0.8023,2492.2,2492.1,3.13853]
[1751337452021,0.8023,2492.2,2492.1,2.3362]
[1751337452217,0.8023,2492.2,2492.1,3.13853]
[1751337456623,3.19754799,2492.3,2492.0,3.2078]
[1751337456624,0.80233,2492.1,2492.0,3.2078]
[1751337456815,0.80233,2492.1,2492.0,5.2578]
[1751337456816,2.12203,2492.1,2492.0,5.2578]
[1751337457015,2.12203,2492.1,2492.0,2.85236]
[1751337460625,0.80233,2492.1,2492.0,5.11930001]
[1751337462332,0.80232,2492.2,2492.1,0.8023]
[1751337462532,0.80232,2492.2,2492.1,2.5823]
[1751337462830,0.80232,2492.2,2492.1,1.78]
[1751337463028,8.06926001,2492.2,2492.1,1.78]
[1751337463235,0.80236,2492.0,2491.9,3.2078]
[1751337463429,0.80236,2492.0,2491.9,6.1378]
[1751337463934,1.49376,2492.0,2491.9,6.1378]
[1751337464435,1.49376,2492.0,2491.9,6.94019]
[1751337467834,1.49376,2492.0,2491.9,6.1378]
[1751337468238,1.49376,2492.0,2491.9,6.94019]
[1751337471333,4.96429001,2492.0,2491.6,3.2078]
[1751337471637,3.38242,2491.9,2491.6,9.18028]
[1751337471836,0.80246,2491.7,2491.6,8.3778]
[1751337473030,0.80246,2491.7,2491.6,9.18029]
[1751337473531,0.80246,2491.7,2491.6,8.3778]
[1751337473732,0.80246,2491.7,2491.6,9.18029]
[1751337474241,0.80246,2491.7,2491.6,8.3778]
[1751337474635,25.19546,2491.7,2491.6,5.17]
[1751337474836,25.19546,2491.7,2491.3,3.2078]
[1751337474837,0.80256,2491.4,2491.3,3.2078]
[1751337475038,0.80256,2491.4,2491.3,5.2978]
[1751337476642,2.13716,2491.4,2491.3,3.2078]
[1751337477634,2.13716,2491.4,2491.3,5.1578]
[1751337477841,2.13716,2491.4,2491.3,3.2078]
[1751337478034,5.33470799,2491.4,2491.3,5.2078]
[1751337478233,5.33470799,2491.4,2491.3,5.1678]
[1751337478431,5.33470799,2491.4,2491.3,3.2078]
[1751337479138,4.53214799,2491.4,2491.0,6.12474001]
[1751337479440,0.80263,2491.2,2491.1,0.80262]
[1751337479645,0.80263,2491.2,2491.1,6.90262]
[1751337480343,0.6805,2491.6,2491.1,6.1]
[1751337480641,0.80252,2491.5,2491.4,4.01032]
[1751337480836,0.80252,2491.5,2491.4,9.46032]
[1751337481637,0.80252,2491.5,2491.4,10.16052]
[1751337482443,0.80252,2491.5,2491.4,10.16056]
[1751337484742,24.418,2491.6,2491.5,0.80252]
[1751337484948,0.80246,2491.8,2491.7,0.80246]
[1751337485248,25.21346,2491.8,2491.7,3.99]
[1751337485543,0.80246,2491.8,2491.7,3.99]
[1751337485740,28.41100799,2491.8,2491.7,4.79246]
[1751337486045,3.2078,2491.9,2491.8,0.80243]
[1751337486246,0.80244,2491.8,2491.7,0.80243]
[1751337486442,0.80244,2491.8,2491.7,2.66243]
[1751337487041,28.42221,2491.9,2491.8,0.80243]
[1751337487246,28.42219,2491.9,2491.8,0.07]
[1751337487446,27.6198,2491.9,2491.4,3.908]
[1751337487647,0.80262,2491.2,2491.1,3.2078]
[1751337487850,0.80262,2491.2,2491.1,5.1178]
[1751337488240,3.06956001,2491.2,2491.1,5.1178]
[1751337489040,0.80262,2491.2,2491.1,2.71265]
[1751337489240,25.22262,2491.2,2491.1,2.71265]
[1751337489651,24.42,2491.2,2491.1,2.71265]
[1751337489846,0.8026,2491.3,2491.2,0.8026]
[1751337490038,24.425,2491.3,2491.2,2.67262]
[1751337490239,25.22759,2491.3,2491.2,5.88042]
[1751337490439,0.80254,2491.5,2491.4,0.80254]
[1751337490644,24.429,2491.5,2491.4,2.44254]
[1751337491346,25.23152,2491.5,2491.4,2.44254]
[1751337492950,25.23252,2491.5,2491.4,2.44254]
[1751337493146,0.7109,2491.7,2491.4,2.44254]
[1751337493147,0.80252,2491.6,2491.5,0.8025]
[1751337493450,25.23252,2491.6,2491.5,3.71]
[1751337494149,0.80256,2491.4,2491.3,3.06951001]
[1751337494449,0.80256,2491.4,2491.3,4.80951001]
[1751337494647,0.80256,2491.4,2491.3,2.54257]
[1751337495049,0.80256,2491.4,2491.3,4.63257]
[1751337496051,0.80255,2491.5,2491.4,0.80254]
[1751337496252,0.80255,2491.5,2491.4,4.86404]
[1751337497154,0.80248,2491.7,2491.6,0.80247]
[1751337497453,25.21948,2491.7,2491.6,5.75247]
[1751337497755,0.80248,2491.7,2491.6,5.75247]
[1751337498253,25.22442,2491.9,2491.8,0.80243]
[1751337498442,25.22442,2491.9,2491.8,4.40243]
[1751337498642,0.80242,2491.9,2491.8,4.40243]
[1751337498845,0.80242,2491.9,2491.8,5.06623]
[1751337499650,0.80242,2491.9,2491.8,4.2638]
[1751337499955,3.99996799,2491.9,2491.8,4.2638]
[1751337500248,0.80242,2491.9,2491.8,4.2638]
[1751337501254,0.80242,2491.9,2491.8,5.06623]
[1751337501454,0.80242,2491.9,2491.8,4.2638]
[1751337502156,0.80242,2491.9,2491.8,5.06623]
[1751337502854,25.22239,2492.0,2491.9,0.80239]
[1751337503053,25.22239,2492.0,2491.9,4.96239]
[1751337504552,25.22239,2492.0,2491.9,4.16]
[1751337506353,25.21839,2492.0,2491.9,4.16]
[1751337508359,25.21839,2492.0,2491.9,4.96239]
[1751337508856,3.99987799,2492.2,2492.1,0.80233]
[1751337509051,29.871488,2492.2,2491.8,0.6638]
[1751337509257,0.80239,2491.9,2491.8,0.6638]
[1751337509452,0.80239,2491.9,2491.8,2.8238]
[1751337509654,2.87939,2491.9,2491.8,2.8238]
[1751337510652,0.80256,2491.4,2491.3,3.2078]
[1751337510860,27.48050001,2491.4,2491.3,3.2078]
[1751337511256,25.21356,2491.4,2491.3,3.2078]
[1751337511959,25.30856,2491.4,2491.3,5.82039]
[1751337512460,25.30856,2491.4,2491.3,7.77619]
[1751337514659,25.30856,2491.4,2491.3,6.9736]
[1751337514860,25.30856,2491.4,2491.3,5.6751]
[1751337515956,25.30856,2491.4,2491.3,5.0178]
[1751337516158,25.30856,2491.4,2491.3,3.2078]
[1751337516357,0.80265,2491.1,2491.0,0.6468]
[1751337516563,0.80265,2491.1,2491.0,6.0968]
[1751337516959,0.80265,2491.1,2491.0,5.45]
[1751337517663,2.23615,2491.1,2491.0,5.45]
[1751337519358,0.80272,2490.9,2490.8,0.80275]
[1751337519564,0.80272,2490.9,2490.8,3.92]
[1751337527176,2.19802,2490.9,2490.8,3.92]
[1751337527772,0.80272,2490.9,2490.8,3.92]
[1751337530771,0.80272,2490.9,2490.8,4.72275]
[1751337531572,0.80269,2491.1,2491.0,0.80267]
[1751337531771,25.26665,2491.1,2491.0,1.67]
[1751337533981,0.80268,2491.0,2490.9,4.0105]
[1751337534177,0.80268,2491.0,2490.9,4.9778]
[1751337534377,0.80268,2491.0,2490.9,1.77]
[1751337534576,2.16008,2491.0,2490.9,1.77]
[1751337535974,0.80275,2490.8,2490.7,0.6468]
[1751337536282,25.25475,2490.8,2490.7,1.0368]
[1751337536880,25.25475,2490.8,2490.7,0.39]
[1751337537081,26.58415,2490.8,2490.7,0.39]
[1751337537783,25.25475,2490.8,2490.7,0.39]
[1751337540483,25.24775,2490.8,2490.7,1.19278]
[1751337540683,25.24775,2490.8,2490.7,0.39]
[1751337542586,25.24775,2490.8,2490.7,1.19278]
[1751337542781,25.24775,2490.8,2490.7,2.61678]
[1751337542982,0.80275,2490.8,2490.7,2.61678]
[1751337543180,25.24375,2490.8,2490.7,2.61678]
[1751337543581,0.80275,2490.9,2490.8,0.80271]
[1751337543780,25.24175,2490.9,2490.8,5.27271]
[1751337544485,25.24175,2490.9,2490.8,4.47]
[1751337546690,25.24175,2490.9,2490.8,5.27275]
[1751337547684,25.24175,2490.9,2490.8,4.47]
[1751337548086,25.24175,2490.9,2490.8,5.27275]
[1751337548584,25.24175,2490.9,2490.8,4.47]
[1751337549488,25.24175,2490.9,2490.8,5.27275]
[1751337549787,25.24175,2490.9,2490.8,4.47]
[1751337555681,0.80276,2490.8,2490.7,0.80278]
[1751337555884,3.19754799,2491.0,2490.7,4.01]
[1751337556090,3.19754799,2491.0,2490.9,0.80272]
[1751337556292,27.60454799,2491.0,2490.9,2.59272]
[1751337556588,28.40722799,2491.0,2490.9,3.28172]
[1751337556885,25.20968,2491.0,2490.9,3.28172]
[1751337558184,3.89244799,2491.1,2490.9,2.479]
[1751337558185,3.19754799,2491.1,2490.9,2.479]
[1751337558391,3.19754799,2491.2,2491.1,0.80265]
[1751337558692,27.60154799,2491.2,2491.1,6.45265]
[1751337558987,27.60154799,2491.2,2491.1,7.16055]
[1751337559590,24.404,2491.2,2491.1,7.16055]
[1751337559792,0.8026,2491.3,2491.2,0.80262]
[1751337560093,25.2106,2491.3,2491.2,2.65262]
[1751337560294,28.40814799,2491.3,2491.2,3.32102]
[1751337560484,4.00014799,2491.3,2491.2,3.32102]
[1751337560690,28.40313799,2491.3,2491.2,5.58796001]
[1751337560991,27.60054799,2491.3,2491.2,5.58796001]
[1751337561293,25.20559,2491.3,2491.2,5.58796001]
[1751337561484,24.403,2491.3,2491.2,5.58796001]
[1751337561688,25.20559,2491.3,2491.2,5.58796001]
[1751337563392,24.403,2491.3,2491.2,5.58796001]
[1751337564194,25.20559,2491.3,2491.2,5.58796001]
[1751337564394,24.403,2491.3,2491.2,5.58796001]
[1751337564896,25.20559,2491.3,2491.2,5.58796001]
[1751337565098,24.403,2491.3,2491.2,5.58796001]
[1751337565395,25.20559,2491.3,2491.2,5.58796001]
[1751337565891,25.20559,2491.3,2490.9,3.2078]
[1751337565892,24.403,2491.3,2490.9,3.2078]
[1751337566088,0.80268,2491.0,2490.9,3.2078]
[1751337566292,25.19668,2491.0,2490.9,3.2078]
[1751337566490,27.21588,2491.0,2490.9,3.2078]
[1751337567897,25.91228,2491.0,2490.9,5.3278]
[1751337568097,25.91228,2491.0,2490.9,3.2078]
[1751337568901,25.91228,2491.0,2490.9,2.2]
[1751337570498,25.91228,2491.0,2490.8,3.2078]
[1751337570499,0.80272,2490.9,2490.8,3.2078]
[1751337570698,0.80272,2490.9,2490.8,5.3778]
[1751337571598,0.80272,2490.9,2490.8,6.18055]
[1751337571798,25.91231,2491.0,2490.9,0.80272]
[1751337572003,25.91231,2491.0,2490.9,3.73]
[1751337573496,28.17925001,2491.0,2490.9,3.73]
[1751337573896,29.54185001,2491.0,2490.9,3.73]
[1751337574698,27.27491,2491.0,2490.9,3.73]
[1751337576105,27.27491,2491.0,2490.9,4.53272]
[1751337576304,25.19671,2491.0,2490.9,3.73]
[1751337576506,25.19671,2491.0,2490.9,4.53272]
[1751337576802,25.19671,2491.0,2490.9,3.73]
[1751337577202,25.19671,2491.0,2490.9,4.53272]
[1751337581410,25.19671,2491.0,2490.9,3.73]
[1751337583309,27.46365001,2491.0,2490.9,3.73]
[1751337583904,0.80278,2490.7,2490.6,1.49341]
[1751337584216,0.80278,2490.7,2490.6,6.18341]
[1751337585816,25.19678,2490.7,2490.6,4.69]
[1751337586316,26.56328,2490.7,2490.6,4.69]
[1751337586818,25.19678,2490.7,2490.6,5.49281]
[1751337587218,25.19678,2490.7,2490.6,4.69]
[1751337592722,25.19678,2490.7,2490.6,6.15861]
[1751337593425,24.394,2490.7,2490.6,6.15861]
[1751337594325,25.19678,2490.7,2490.6,5.3558]
[1751337594522,25.19678,2490.7,2490.6,4.69]
[1751337594733,0.80281,2490.6,2490.5,3.2078]
[1751337595024,2.21601,2490.6,2490.5,3.4578]
[1751337596324,0.80281,2490.6,2490.5,3.4578]
[1751337597531,0.80281,2490.6,2490.5,4.26065]
[1751337597721,0.80281,2490.6,2490.5,3.4578]
[1751337598331,0.80281,2490.6,2490.5,4.26065]
[1751337600132,0.80281,2490.6,2490.5,3.4578]
[1751337600327,0.80281,2490.6,2490.5,0.25]
[1751337600630,0.80281,2490.6,2490.5,1.05285]
[1751337601023,25.19881,2490.6,2490.5,0.25]
[1751337602032,25.19881,2490.6,2490.5,1.05285]
[1751337607042,25.19881,2490.6,2490.5,0.25]
[1751337607439,26.57391,2490.6,2490.5,0.25]
[1751337607736,27.27941,2490.6,2490.5,0.25]
[1751337617842,0.80291,2490.3,2490.2,3.2078]
[1751337618045,25.19791,2490.3,2490.2,6.0778]
[1751337619443,5.92225117,2490.6,2490.2,8.34474001]
[1751337619646,0.80281,2490.6,2490.5,3.2078]
[1751337619946,25.19681,2490.6,2490.5,9.4178]
[1751337620145,25.19681,2490.6,2490.5,10.133]
[1751337625150,25.19681,2490.6,2490.5,7.72805]
[1751337625351,25.19681,2490.6,2490.5,6.9252]
[1751337626954,25.19681,2490.6,2490.5,7.72805]
[1751337627551,25.19681,2490.6,2490.5,6.9252]
[1751337628152,25.19681,2490.6,2490.5,7.72805]
[1751337628657,4.01242117,2490.8,2490.7,0.80278]
[1751337628857,25.19377,2490.8,2490.7,1.58]
[1751337630457,25.19377,2490.8,2490.7,2.38278]
[1751337631552,0.80277,2490.8,2490.7,2.38278]
[1751337631758,25.19277,2490.8,2490.7,2.38278]
[1751337633250,25.19277,2490.8,2490.7,1.58]
[1751337633460,0.80278,2490.7,2490.6,3.77223001]
[1751337633658,0.80278,2490.7,2490.6,2.6725]
[1751337633861,0.80281,2490.6,2490.5,0.7152]
[1751337634162,3.73095001,2490.6,2490.5,0.7152]
[1751337634756,0.80285,2490.5,2490.4,3.2078]
[1751337635053,27.45879001,2490.5,2490.4,3.2078]
[1751337635660,28.78359001,2490.5,2490.4,3.2078]
[1751337636256,26.51665,2490.5,2490.4,3.2078]
[1751337638058,28.78359001,2490.5,2490.4,3.2078]
[1751337638461,31.99324118,2490.5,2490.4,3.2078]
[1751337638858,0.80294,2490.2,2490.1,0.6783]
[1751337639059,25.19194,2490.2,2490.1,1.3583]
[1751337641554,25.19194,2490.2,2489.7,3.2078]
[1751337641761,2.26694001,2489.8,2489.7,2.26]
[1751337642062,24.389,2489.8,2489.7,2.26]
[1751337642262,24.389,2489.8,2489.7,3.0631]
[1751337642462,25.19207,2489.8,2489.7,2.26]
[1751337642856,3.2078,2490.0,2489.7,2.26]
[1751337643058,25.19307,2489.9,2489.8,3.06999001]
[1751337643263,25.19304,2489.9,2489.8,3.8145]
[1751337643465,25.19304,2489.9,2489.8,4.61757]
[1751337644061,25.19304,2489.9,2489.8,3.8145]
[1751337646861,25.19304,2489.9,2489.8,4.61757]
[1751337648369,25.19304,2489.9,2489.8,3.8145]
[1751337649472,25.19304,2489.9,2489.8,4.61757]
[1751337649473,24.39,2489.9,2489.8,4.61757]
[1751337650972,26.65694001,2489.9,2489.4,3.2078]
[1751337651170,0.80317,2489.5,2489.4,1.24316]
[1751337651370,25.19517,2489.5,2489.4,1.24316]
[1751337654573,25.19517,2489.5,2489.4,0.44]
[1751337655470,25.19517,2489.5,2489.4,1.2432]
[1751337657178,25.19517,2489.5,2489.4,0.44]
[1751337657779,25.19517,2489.5,2489.4,1.2432]
[1751337660382,0.696,2489.8,2489.4,0.44]
[1751337660576,25.19813,2489.7,2489.6,0.8031]
[1751337660879,0.80313,2489.7,2489.6,7.2431]
[1751337662578,0.8031,2489.8,2489.7,0.80308]
[1751337662779,0.8031,2489.8,2489.7,6.24308]
[1751337662983,1.50145,2490.0,2489.9,0.80304]
[1751337663274,25.19805,2490.0,2489.9,6.75304]
[1751337663482,25.19805,2490.0,2489.9,5.95]
[1751337663675,25.19805,2490.0,2489.9,6.75304]
[1751337663877,0.80305,2490.0,2489.9,6.75304]
[1751337664581,0.80305,2490.0,2489.9,5.95]
[1751337665582,0.80305,2490.0,2489.9,6.75304]
[1751337666377,0.80305,2490.0,2489.9,5.95]
[1751337666884,0.80305,2490.0,2489.9,6.75304]
[1751337668382,0.80305,2490.0,2489.9,5.95]
[1751337669080,0.80305,2490.0,2489.9,6.75304]
[1751337669485,0.80305,2490.0,2489.9,5.95]
[1751337670187,0.80305,2490.0,2489.9,6.75304]
[1751337670392,0.80305,2490.0,2489.9,5.95]
[1751337671688,0.80305,2490.0,2489.9,6.75304]
[1751337672588,0.80305,2490.0,2489.9,5.95]
[1751337673584,0.80305,2490.0,2489.9,6.75304]
[1751337673886,0.80305,2490.0,2489.9,5.95]
[1751337680495,0.80307,2489.8,2489.7,0.7147]
[1751337680693,0.80307,2489.8,2489.7,6.2647]
[1751337680895,0.80307,2489.8,2489.7,7.0678]
[1751337683294,3.07001001,2489.8,2489.7,6.2647]
[1751337683503,30.66781001,2489.8,2489.7,5.55]
[1751337684202,31.99331001,2489.8,2489.7,5.55]
[1751337687603,32.69031001,2489.8,2489.7,5.55]
[1751337694912,0.8032,2489.4,2489.3,0.6864]
[1751337695106,25.1932,2489.4,2489.3,3.5864]
[1751337696612,25.1932,2489.4,2489.3,2.9]
[1751337698013,26.612,2489.4,2489.3,2.9]
[1751337699112,31.612,2489.4,2489.3,2.9]
[1751337699618,26.612,2489.4,2489.3,2.9]
[1751337700215,0.8033,2489.1,2489.0,0.6724]
[1751337700414,25.1943,2489.1,2489.0,4.46573]
[1751337700917,25.1943,2489.1,2489.0,3.6624]
[1751337701312,25.1943,2489.1,2489.0,4.46573]
[1751337701719,25.1943,2489.1,2489.0,3.6624]
[1751337703418,25.1943,2489.1,2489.0,4.46573]
[1751337703619,25.1943,2489.1,2489.0,3.6624]
[1751337705113,25.1943,2489.1,2489.0,4.46573]
[1751337705515,0.8033,2489.1,2489.0,4.46573]
[1751337705712,25.1953,2489.1,2489.0,6.73267001]
[1751337706214,25.1943,2489.1,2489.0,6.73267001]
[1751337706819,0.80329,2489.2,2489.1,0.80327]
[1751337707021,25.19429,2489.2,2489.1,3.02327]